bitfinex/quotes_ETHUSD_20251119
["timestamp","ask_amount","ask_price","bid_price","bid_amount"]
[1763547105274,1.48028813,3110.7,3110.6,0.001]
[1763547105993,0.9756,3110.7,3110.6,0.001]
[1763547106163,1.48030134,3110.7,3110.6,0.001]
[1763547106771,0.9756,3110.7,3110.6,0.001]
[1763547107387,1.7783918,3110.7,3110.6,0.001]
[1763547108984,0.9756,3110.6,3109.9,0.001]
[1763547109189,0.4849,3110.3,3109.9,0.001]
[1763547109372,1.14792254,3110.2,3109.9,0.001]
[1763547109569,0.4849,3109.6,3107.1,0.001]
[1763547109769,6.14532536,3109.1,3107.1,0.001]
[1763547110310,1.39769264,3109.0,3107.1,0.001]
[1763547110492,0.7543018,3108.9,3107.1,0.001]
[1763547110803,1.4448018,3108.9,3107.1,0.001]
[1763547111104,0.4907,3108.8,3107.1,0.001]
[1763547114514,0.4899,3108.8,3107.1,0.001]
[1763547121112,0.4899,3108.8,3107.2,0.405504]
[1763547121310,0.4899,3108.8,3107.1,0.001]
[1763547121613,0.1998,3108.9,3107.2,0.03218331]
[1763547122134,0.1998,3108.9,3107.3,0.43768628]
[1763547122300,0.1998,3108.9,3107.1,0.001]
[1763547122480,0.4907,3108.8,3107.1,0.001]
[1763547123796,0.4907,3108.8,3107.3,1.31249664]
[1763547124222,0.1998,3108.9,3107.3,1.31249664]
[1763547124423,0.002,3109.5,3107.6,0.405504]
[1763547124424,0.1998,3109.2,3107.6,0.405504]
[1763547124595,0.4907,3109.1,3107.6,0.405504]
[1763547127705,0.1998,3109.2,3107.8,0.405504]
[1763547128092,0.662,3109.2,3107.5,0.001]
[1763547128607,0.4622,3109.1,3107.5,0.001]
[1763547129015,0.4622,3109.1,3107.6,3.87]
[1763547129204,0.002,3109.5,3107.7,1.73499279]
[1763547129205,0.1944,3109.4,3107.7,1.73499279]
[1763547129405,0.002,3109.5,3108.0,0.405504]
[1763547129604,0.50488296,3109.4,3108.0,0.405504]
[1763547129809,0.002,3109.5,3108.0,0.405504]
[1763547130599,0.4642,3109.5,3108.0,0.405504]
[1763547131434,0.4642,3109.5,3107.9,0.90699264]
[1763547131621,0.4642,3109.5,3108.0,0.47769926]
[1763547131996,0.4642,3109.5,3108.1,0.3226]
[1763547132288,0.4642,3109.5,3108.0,0.47769926]
[1763547133114,0.50489949,3109.2,3108.0,0.47769926]
[1763547133423,0.4622,3109.1,3108.0,0.47769926]
[1763547134446,0.4622,3109.1,3107.7,0.39031802]
[1763547134742,0.4622,3109.1,3107.3,0.03218228]
[1763547134898,0.4622,3109.1,3107.0,0.50489949]
[1763547134899,0.4622,3109.1,3106.6,0.93918217]
[1763547135090,0.4622,3109.1,3107.2,0.405504]
[1763547135503,0.4622,3109.1,3107.9,0.3226]
[1763547136280,0.4622,3109.1,3107.5,0.406504]
[1763547136436,0.4622,3109.1,3107.5,0.001]
[1763547136773,0.4622,3109.1,3107.5,0.3236]
[1763547137676,0.4622,3109.1,3107.5,0.001]
[1763547138837,0.50492654,3108.8,3107.5,0.001]
[1763547139132,0.4622,3109.1,3107.5,0.001]
[1763547139360,0.5049324,3108.7,3107.5,0.001]
[1763547139779,0.002,3109.5,3107.5,0.001]
[1763547139964,0.30298143,3109.5,3107.5,0.001]
[1763547140160,0.002,3109.5,3107.5,0.001]
[1763547140357,0.002,3109.1,3107.5,0.001]
[1763547141447,0.4622,3109.0,3107.5,0.001]
[1763547142967,0.50496269,3108.7,3107.5,0.001]
[1763547143371,0.4941,3108.6,3107.5,0.406504]
[1763547143580,0.4941,3108.6,3107.6,0.16360966]
[1763547143976,0.4941,3108.6,3107.5,0.001]
[1763547144279,0.50500135,3108.4,3107.5,0.001]
[1763547144584,0.4941,3108.6,3107.5,0.001]
[1763547147564,0.50502554,3108.4,3107.5,0.001]
[1763547147967,0.4941,3108.3,3107.5,0.001]
[1763547150585,0.4618,3107.6,3107.5,0.001]
[1763547151251,0.1869,3107.8,3107.5,0.001]
[1763547151457,0.681,3107.8,3107.5,0.001]
[1763547152391,0.4941,3107.7,3107.5,0.001]
[1763547153585,0.4618,3107.6,3107.5,0.001]
[1763547153786,0.4941,3107.7,3107.5,0.001]
[1763547153994,0.1869,3107.8,3107.5,0.001]
[1763547155504,0.681,3107.8,3107.5,0.001]
[1763547155813,0.4941,3108.2,3107.5,0.001]
[1763547156007,0.79542602,3108.9,3107.5,0.001]
[1763547156223,0.79542602,3108.9,3107.5,0.0331802]
[1763547156523,0.4941,3108.8,3107.7,0.405504]
[1763547156817,0.4941,3108.8,3107.7,0.76028213]
[1763547157012,0.1869,3109.0,3107.9,0.405504]
[1763547157170,0.681,3109.0,3107.9,0.405504]
[1763547157910,0.681,3109.0,3108.1,0.405504]
[1763547158115,0.1869,3109.0,3108.1,0.405504]
[1763547158272,0.4661,3108.9,3107.9,0.405504]
[1763547158476,0.4661,3108.9,3108.1,0.405504]
[1763547158696,0.4661,3108.9,3107.8,4.77699264]
[1763547159386,0.4661,3108.9,3107.8,3.87]
[1763547159571,0.50500018,3108.7,3107.8,3.87]
[1763547160007,0.4661,3108.6,3107.8,3.87]
[1763547160384,0.4661,3108.6,3107.8,4.257]
[1763547160717,0.50498112,3108.5,3107.8,4.257]
[1763547160878,0.50498112,3108.5,3107.8,3.87]
[1763547161077,0.4661,3108.4,3107.8,3.87]
[1763547161295,0.6623,3107.9,3107.5,0.001]
[1763547161714,0.1869,3109.0,3107.5,0.001]
[1763547161715,0.4661,3108.6,3107.5,0.001]
[1763547163412,0.4724,3107.6,3107.5,0.001]
[1763547163808,0.9385,3107.6,3107.5,0.001]
[1763547164325,1.44277128,3107.6,3107.5,0.001]
[1763547164743,1.60603841,3107.6,3107.5,0.001]
[1763547165836,1.10096713,3107.6,3107.5,0.001]
[1763547166003,1.60607307,3107.6,3107.5,0.001]
[1763547166219,1.10096713,3107.6,3107.5,0.001]
[1763547168074,1.10096713,3107.6,3107.2,0.001]
[1763547168240,0.4724,3107.3,3107.2,0.001]
[1763547168624,0.9385,3107.3,3107.2,0.001]
[1763547169135,1.44368633,3107.3,3107.2,0.001]
[1763547169340,0.9385,3107.3,3107.2,0.001]
[1763547169655,1.44368237,3107.3,3107.2,0.001]
[1763547170367,0.9385,3107.3,3107.2,0.001]
[1763547173363,1.44372294,3107.3,3107.2,0.001]
[1763547173705,0.9385,3107.3,3107.2,0.001]
[1763547173836,1.44371451,3107.3,3107.2,0.001]
[1763547174271,0.9385,3107.3,3107.2,0.001]
[1763547175472,0.08564897,3107.3,3107.2,0.001]
[1763547175770,0.002,3107.5,3107.2,0.001]
[1763547176278,0.4724,3107.3,3107.2,0.001]
[1763547177759,0.002,3107.5,3107.2,0.001]
[1763547178081,0.4724,3107.3,3107.2,0.001]
[1763547180774,0.002,3107.5,3107.2,0.625]
[1763547181408,0.002,3107.5,3107.2,0.4692]
[1763547181699,0.4724,3107.3,3107.2,0.001]
[1763547182470,0.002,3107.5,3107.2,0.4692]
[1763547183305,0.4724,3107.3,3107.2,0.001]
[1763547183604,0.002,3107.5,3107.2,0.001]
[1763547183898,0.002,3107.5,3107.4,0.4682]
[1763547184274,0.002,3107.5,3107.4,0.9643]
[1763547184980,0.002,3107.5,3107.4,1.369804]
[1763547185184,0.002,3107.5,3107.4,0.4682]
[1763547185501,0.002,3107.5,3107.2,0.4971]
[1763547185502,0.002,3107.5,3107.2,0.001]
[1763547185709,0.002,3107.5,3107.4,0.4682]
[1763547186016,0.002,3107.5,3107.2,0.001]
[1763547186165,0.4681,3107.5,3107.2,0.001]
[1763547186713,0.4724,3107.3,3107.2,0.001]
[1763547187014,0.9385,3107.3,3107.2,0.001]
[1763547188017,0.4724,3107.3,3107.2,0.001]
[1763547188466,0.97756152,3107.3,3107.2,0.001]
[1763547188666,1.43866152,3107.3,3107.2,0.001]
[1763547188869,0.9335,3107.3,3107.2,0.001]
[1763547189418,0.9327,3107.3,3107.2,0.001]
[1763547190586,1.23392108,3107.3,3107.2,0.001]
[1763547191471,0.30122108,3107.3,3107.2,0.4655]
[1763547191696,0.4708,3107.3,3107.2,0.001]
[1763547191899,1.43706459,3107.3,3107.2,0.001]
[1763547192725,0.97596459,3107.3,3107.2,0.001]
[1763547192933,0.50516459,3107.3,3107.2,0.001]
[1763547193416,0.30343589,3107.5,3107.2,0.4655]
[1763547193618,0.97596624,3107.3,3107.2,0.001]
[1763547194319,0.4708,3107.3,3107.2,0.001]
[1763547194894,0.9319,3107.3,3107.2,0.001]
[1763547195094,1.23352588,3107.3,3107.2,0.001]
[1763547197602,0.77242588,3107.3,3107.2,0.001]
[1763547197806,0.9319,3107.3,3107.2,0.001]
[1763547198006,1.23357029,3107.3,3107.2,0.001]
[1763547199425,1.19341902,3107.3,3107.2,0.001]
[1763547200140,0.73231902,3107.3,3107.2,0.001]
[1763547200351,0.30167029,3107.3,3107.2,0.001]
[1763547200521,0.30167029,3107.4,3107.2,0.4655]
[1763547200835,0.002,3107.5,3107.2,0.4655]
[1763547201239,0.002,3107.5,3107.2,0.001]
[1763547201421,0.4708,3107.3,3107.2,0.001]
[1763547201623,0.9319,3107.3,3107.2,0.001]
[1763547201827,1.23352702,3107.3,3107.2,0.001]
[1763547203705,1.92853325,3107.3,3107.2,0.001]
[1763547203911,2.52709058,3107.3,3107.2,0.001]
[1763547204140,3.43408322,3107.3,3107.2,0.001]
[1763547207108,3.02857922,3107.3,3107.2,0.001]
[1763547209752,3.03057922,3107.3,3107.2,0.001]
[1763547214325,3.02977922,3107.3,3107.2,0.001]
[1763547216349,3.43528322,3107.3,3107.2,0.001]
[1763547218644,1.31249664,3107.2,3107.1,0.001]
[1763547218961,4.9272547,3107.2,3107.1,0.001]
[1763547219126,4.05833725,3107.2,3107.1,0.001]
[1763547220560,0.842004,3107.0,3106.8,0.001]
[1763547220728,8.91384261,3106.9,3106.8,0.001]
[1763547220927,9.60884884,3106.9,3106.8,0.001]
[1763547221133,9.99665985,3106.9,3106.8,0.001]
[1763547222862,10.40216385,3106.9,3106.8,0.001]
[1763547224338,1.31249664,3106.8,3105.7,0.1587]
[1763547224569,0.839404,3106.6,3105.7,0.1587]
[1763547224869,11.60824705,3106.6,3105.7,0.1587]
[1763547225072,0.405504,3106.5,3105.1,0.001]
[1763547225372,0.405504,3106.5,3105.4,0.4777]
[1763547225373,4.57490846,3105.8,3105.4,0.4777]
[1763547225747,4.57490846,3105.8,3105.1,0.001]
[1763547225748,0.90699264,3105.7,3105.1,0.001]
[1763547225952,4.57490846,3105.5,3105.2,0.4777]
[1763547226345,4.57490846,3105.5,3105.4,0.4832]
[1763547226574,0.90699264,3105.7,3105.4,0.4832]
[1763547226872,0.90699264,3105.7,3105.4,0.9609]
[1763547227050,0.90699264,3105.7,3105.6,0.4832]
[1763547227255,0.90699264,3105.7,3105.6,0.9609]
[1763547229039,1.41249133,3105.7,3105.6,0.9609]
[1763547230082,1.41249133,3105.7,3105.6,0.4832]
[1763547230655,1.41249133,3105.7,3105.6,0.9609]
[1763547230889,0.50549869,3105.7,3105.6,0.9609]
[1763547233069,0.50549869,3105.7,3105.6,0.4832]
[1763547233389,0.50549869,3105.7,3105.6,0.9609]
[1763547233952,4.57490846,3106.0,3105.6,0.9609]
[1763547234286,4.57490846,3106.0,3105.9,0.4832]
[1763547234883,4.57490846,3106.0,3105.9,0.9609]
[1763547235895,4.57490846,3106.0,3105.9,0.4832]
[1763547237989,4.57490846,3106.4,3105.9,0.9609]
[1763547238195,5.4819011,3106.4,3106.3,0.4832]
[1763547238394,5.78352759,3106.4,3106.3,0.4832]
[1763547238559,1.20861913,3106.4,3106.3,0.4832]
[1763547238760,4.57490846,3106.7,3106.3,0.9609]
[1763547238964,1.20860259,3106.6,3106.3,0.9609]
[1763547239163,0.30080995,3106.5,3106.3,0.4832]
[1763547239363,10.52150956,3106.4,3105.5,0.1595]
[1763547239580,4.57490846,3106.2,3105.5,0.6372]
[1763547239863,0.90699264,3106.1,3105.5,0.6372]
[1763547240062,0.90699264,3106.1,3105.6,0.4777]
[1763547240269,4.57490846,3106.2,3106.0,0.4832]
[1763547240475,4.57490846,3106.5,3106.1,0.9609]
[1763547240673,0.90699264,3106.4,3106.1,0.9609]
[1763547241327,5.4819011,3106.2,3105.6,0.4777]
[1763547241475,4.57490846,3105.9,3105.5,0.1595]
[1763547242108,5.4819011,3105.9,3105.8,0.4832]
[1763547242487,0.90699264,3105.8,3105.5,0.6372]
[1763547242669,5.03960846,3105.9,3105.5,0.6372]
[1763547242871,4.57490846,3105.6,3105.4,0.001]
[1763547243265,4.57490846,3105.6,3105.5,0.4832]
[1763547243468,4.57490846,3105.6,3105.4,0.001]
[1763547243905,4.57490846,3105.6,3105.5,0.4832]
[1763547244421,5.03960846,3105.6,3105.4,0.001]
[1763547244619,0.50396085,3105.5,3105.4,0.001]
[1763547245328,0.50396085,3105.5,3105.4,0.4842]
[1763547245515,4.57490846,3105.6,3105.5,0.001]
[1763547246130,5.4819011,3105.6,3105.5,0.4842]
[1763547248607,5.4819011,3105.6,3105.5,0.9448]
[1763547249457,0.1905,3106.2,3105.5,0.4842]
[1763547249764,4.57490846,3106.4,3106.1,0.4682]
[1763547250055,4.57490846,3106.0,3105.6,0.4606]
[1763547250408,4.57490846,3106.0,3105.9,0.4682]
[1763547250832,4.57490846,3106.0,3105.9,0.9288]
[1763547251943,4.57490846,3106.0,3105.9,0.4682]
[1763547252144,4.57490846,3106.1,3105.9,0.9288]
[1763547252655,5.4819011,3106.1,3106.0,0.4682]
[1763547252809,5.78390217,3106.1,3106.0,0.4682]
[1763547253444,5.78390217,3106.1,3106.0,0.9288]
[1763547253633,5.78390217,3106.1,3106.0,0.4682]
[1763547254416,5.78390217,3106.1,3105.5,0.001]
[1763547254417,6.24040217,3106.1,3105.5,0.001]
[1763547254742,5.4819011,3106.1,3106.0,0.4682]
[1763547254944,5.78390855,3106.1,3106.0,0.4682]
[1763547255343,6.24040855,3106.1,3105.7,0.4606]
[1763547255547,5.4819011,3106.1,3105.7,0.4606]
[1763547255749,5.4819011,3106.1,3106.0,0.4682]
[1763547255957,5.78390623,3106.1,3106.0,0.4682]
[1763547257228,5.78390623,3106.1,3105.7,0.4606]
[1763547257437,4.57490846,3105.8,3105.5,0.001]
[1763547257639,4.57490846,3105.8,3105.5,0.4616]
[1763547257840,4.57490846,3105.8,3105.7,0.4682]
[1763547258042,4.57490846,3105.8,3105.5,0.001]
[1763547258239,0.4565,3105.6,3105.5,0.001]
[1763547258439,1.00843085,3105.6,3105.5,0.001]
[1763547258754,1.49633085,3105.6,3105.5,0.001]
[1763547259824,1.79839124,3105.6,3105.5,0.001]
[1763547260243,0.30206039,3105.6,3105.5,0.4692]
[1763547260929,0.75856039,3105.6,3105.5,0.001]
[1763547261151,1.24646039,3105.6,3105.5,0.001]
[1763547261522,0.75856039,3105.6,3105.5,0.001]
[1763547262329,0.30206039,3105.6,3105.5,0.001]
[1763547262529,1.33695654,3105.6,3105.5,0.001]
[1763547262749,2.23036054,3105.6,3105.5,0.001]
[1763547263731,1.74246054,3105.6,3105.5,0.001]
[1763547263924,2.24800081,3105.6,3105.5,0.001]
[1763547264256,3.11785318,3105.6,3105.5,0.001]
[1763547264826,2.64865318,3105.6,3105.5,0.001]
[1763547265024,3.11785318,3105.6,3105.5,0.001]
[1763547265228,3.81358972,3105.6,3105.5,0.001]
[1763547266227,0.90699264,3105.5,3105.4,0.001]
[1763547266426,7.22729661,3105.5,3105.4,0.001]
[1763547266637,2.65238815,3105.5,3105.4,0.001]
[1763547267340,3.15799809,3105.5,3105.4,0.001]
[1763547267528,2.65238815,3105.5,3105.4,0.001]
[1763547268141,3.05789215,3105.5,3105.4,0.001]
[1763547269442,2.58869215,3105.5,3105.4,0.001]
[1763547269736,5.02540846,3105.5,3105.4,0.001]
[1763547269937,5.4819011,3105.5,3105.4,0.001]
[1763547270464,5.4819011,3105.5,3105.4,0.4977]
[1763547271388,2.25543258,3106.6,3105.4,0.4977]
[1763547271389,0.86893483,3106.6,3105.4,0.9697]
[1763547271567,1.34763086,3106.7,3106.4,0.4967]
[1763547271868,0.90699264,3106.8,3106.4,0.6562]
[1763547272169,0.90699264,3106.8,3106.4,1.1282]
[1763547272660,0.90699264,3106.8,3106.1,0.1595]
[1763547272859,4.77620846,3106.9,3106.1,0.1595]
[1763547272860,0.90899264,3106.5,3106.1,0.1595]
[1763547273043,0.90899264,3106.5,3106.1,0.6315]
[1763547273240,4.57490846,3106.3,3106.1,0.1595]
[1763547273667,4.57490846,3106.3,3106.2,0.4967]
[1763547274467,0.90699264,3106.2,3105.4,0.001]
[1763547274677,4.57490846,3105.8,3105.4,0.001]
[1763547275181,4.57490846,3105.8,3105.4,0.473]
[1763547275385,4.57490846,3105.8,3105.7,0.4967]
[1763547275578,0.50546345,3105.8,3105.7,0.9687]
[1763547275992,4.57490846,3106.1,3105.7,0.9687]
[1763547276372,5.4819011,3106.1,3106.0,0.4967]
[1763547277562,0.90699264,3106.1,3106.0,0.9775]
[1763547278461,4.57490846,3106.4,3106.0,0.9775]
[1763547278685,4.57490846,3106.4,3106.3,0.659]
[1763547278914,0.002,3106.5,3106.3,0.659]
[1763547279091,0.002,3106.5,3106.4,0.4995]
[1763547279271,0.50741345,3106.5,3106.4,0.4995]
[1763547280191,0.002,3106.5,3106.4,0.4995]
[1763547280583,0.50741241,3106.5,3106.4,0.4995]
[1763547281070,0.002,3106.5,3106.4,0.4995]
[1763547281793,0.002,3106.5,3106.4,0.9803]
[1763547282594,0.002,3106.5,3106.4,0.4995]
[1763547283894,0.002,3106.5,3106.4,0.9803]
[1763547284120,0.50738877,3106.5,3106.4,0.9803]
[1763547285724,0.50738877,3106.5,3106.4,0.4995]
[1763547286905,0.50738877,3106.5,3106.1,0.1595]
[1763547287220,0.50738877,3106.5,3106.4,0.4995]
[1763547289029,1.46528877,3106.5,3105.6,0.4808]
[1763547289192,4.67690568,3106.1,3105.4,0.4818]
[1763547289398,4.67690568,3106.1,3105.4,0.91698]
[1763547290131,1.31249664,3106.4,3106.0,0.4995]
[1763547290433,1.79699664,3106.4,3106.0,0.4995]
[1763547291623,1.31249664,3106.4,3106.0,0.4995]
[1763547291929,1.31249664,3106.4,3105.4,0.001]
[1763547291930,0.4734,3106.1,3105.4,0.001]
[1763547292308,0.9579,3106.1,3105.4,0.001]
[1763547292718,5.63480568,3106.1,3105.4,0.001]
[1763547292924,0.4734,3105.5,3105.4,0.001]
[1763547293430,1.1564,3105.5,3105.4,0.001]
[1763547295906,0.405504,3105.7,3105.4,0.001]
[1763547296311,0.4734,3105.5,3105.4,0.001]
[1763547297137,0.890004,3105.7,3105.4,0.001]
[1763547297299,0.1985,3105.8,3105.4,0.001]
[1763547297504,0.890004,3106.2,3105.7,0.4995]
[1763547297739,0.405504,3106.0,3105.7,0.4995]
[1763547298043,0.405504,3106.0,3105.4,0.001]
[1763547298044,0.624,3105.8,3105.4,0.001]
[1763547298352,0.4734,3105.8,3105.4,0.001]
[1763547298553,0.9579,3105.8,3105.4,0.001]
[1763547299112,0.405504,3106.3,3105.7,0.4995]
[1763547299312,0.70677989,3106.3,3105.7,0.4995]
[1763547299551,1.19127989,3106.3,3105.7,0.4995]
[1763547299757,0.405504,3106.1,3105.7,0.4995]
[1763547299960,0.70677989,3106.1,3105.7,0.4995]
[1763547300554,0.4857,3106.5,3105.7,0.4808]
[1763547300753,0.405504,3106.4,3105.4,0.001]
[1763547300936,0.4845,3106.3,3105.4,0.001]
[1763547301147,0.78589659,3106.3,3105.4,0.001]
[1763547301348,0.4734,3105.5,3105.4,0.001]
[1763547301524,0.624,3105.5,3105.4,0.001]
[1763547301720,1.1085,3105.5,3105.4,0.001]
[1763547302612,1.514004,3105.5,3105.4,0.001]
[1763547302818,1.81549648,3105.5,3105.4,0.001]
[1763547303057,1.36194613,3105.5,3105.4,0.001]
[1763547303351,1.363404,3105.5,3105.4,0.001]
[1763547303540,1.66485502,3105.5,3105.4,0.001]
[1763547303962,2.35948985,3105.5,3105.4,0.001]
[1763547304416,1.66485502,3105.5,3105.4,0.001]
[1763547306452,0.405504,3105.7,3105.4,0.5005]
[1763547306861,0.70668423,3105.7,3105.4,0.5005]
[1763547307060,1.19118423,3105.7,3105.4,0.001]
[1763547307280,0.1985,3105.8,3105.4,0.001]
[1763547307585,0.98413296,3105.8,3105.4,0.001]
[1763547307752,0.30113296,3105.7,3105.4,0.001]
[1763547308077,0.893504,3105.5,3105.4,0.001]
[1763547308448,1.349204,3105.5,3105.4,0.001]
[1763547308648,0.893504,3105.5,3105.4,0.001]
[1763547309479,1.349204,3105.5,3105.4,0.001]
[1763547310146,1.85479147,3105.5,3105.4,0.001]
[1763547310374,2.04027062,3105.5,3105.4,0.001]
[1763547310570,1.53468315,3105.5,3105.4,0.001]
[1763547311581,1.07898315,3105.5,3105.4,0.001]
[1763547311885,0.4557,3106.0,3105.4,0.4996]
[1763547312085,0.69375777,3106.1,3105.4,0.4996]
[1763547312373,1.14945777,3106.2,3105.4,0.4996]
[1763547312573,0.405504,3106.1,3105.4,0.4996]
[1763547312791,0.405504,3106.1,3105.4,0.9567]
[1763547313150,0.4557,3106.2,3105.4,0.9567]
[1763547313390,0.4557,3106.2,3105.4,0.001]
[1763547313554,0.50553242,3106.0,3105.4,0.001]
[1763547313881,0.405504,3105.9,3105.4,0.001]
[1763547314183,0.602604,3105.9,3105.4,0.001]
[1763547315079,0.4557,3105.8,3105.4,0.001]
[1763547315401,0.488,3105.5,3105.4,0.001]
[1763547315882,0.9437,3105.5,3105.4,0.001]
[1763547316250,1.349204,3105.5,3105.4,0.001]
[1763547317875,2.04419701,3105.5,3105.4,0.001]
[1763547318273,2.04446561,3105.5,3105.4,0.001]
[1763547319679,2.24891217,3105.5,3105.4,0.001]
[1763547321513,1.18326161,3105.5,3105.4,0.001]
[1763547321701,0.893504,3105.5,3105.4,0.001]
[1763547322005,0.69526161,3105.6,3105.4,0.4996]
[1763547322293,3.16664369,3106.8,3105.5,0.4986]
[1763547322294,1.83022121,3106.3,3105.5,0.4986]
[1763547322493,0.90699264,3106.2,3105.5,0.4986]
[1763547322658,0.69568379,3106.2,3105.5,0.9557]
[1763547322858,0.87013483,3106.5,3105.5,0.9557]
[1763547323056,0.0012,3106.5,3105.6,0.4571]
[1763547323272,0.69688379,3106.5,3105.6,0.4571]
[1763547323493,1.17388379,3106.5,3105.6,0.4571]
[1763547324194,0.69688379,3106.5,3105.6,0.4571]
[1763547324496,0.0012,3106.5,3105.6,0.4571]
[1763547325205,0.0012,3106.5,3106.4,0.4754]
[1763547326811,0.0012,3106.5,3106.0,0.1595]
[1763547327208,0.0012,3106.5,3106.1,0.4996]
[1763547327406,0.0012,3106.5,3106.0,0.1595]
[1763547327571,0.0012,3106.5,3106.4,0.4754]
[1763547328122,0.0012,3106.5,3106.4,0.975]
[1763547328340,0.0012,3106.5,3106.4,0.4754]
[1763547328698,0.0012,3106.5,3106.4,0.975]
[1763547330234,0.0012,3106.5,3106.0,0.1595]
[1763547330235,0.4836,3106.5,3106.0,0.1595]
[1763547330527,0.9606,3106.5,3106.0,0.1595]
[1763547330712,0.0012,3106.5,3106.1,0.4996]
[1763547330917,0.0012,3106.5,3106.0,0.1595]
[1763547331300,0.4782,3106.5,3106.0,0.1595]
[1763547331720,0.0012,3106.5,3106.0,0.1595]
[1763547332245,0.0012,3106.5,3105.7,0.4996]
[1763547332246,0.4782,3106.5,3105.7,0.4996]
[1763547333703,0.405504,3106.4,3105.4,0.001]
[1763547334110,0.405504,3106.2,3105.4,0.5006]
[1763547334719,0.405504,3106.4,3105.4,0.5006]
[1763547334925,0.882504,3106.4,3105.4,0.5006]
[1763547335424,0.0012,3106.5,3106.3,0.4754]
[1763547335630,0.4824,3106.4,3105.7,0.4996]
[1763547335826,0.0012,3106.5,3105.7,0.4996]
[1763547336704,0.0012,3106.5,3106.4,0.6349]
[1763547337209,0.0012,3106.5,3105.7,0.4996]
[1763547337210,0.9606,3106.5,3106.0,0.1595]
[1763547337427,0.0012,3106.5,3106.4,0.4595]
[1763547337627,0.0012,3106.5,3106.4,0.9226]
[1763547337814,0.0012,3106.5,3106.4,0.4595]
[1763547338422,0.0012,3106.5,3106.4,0.9226]
[1763547339242,0.0004,3106.5,3106.4,0.9226]
[1763547342014,0.0004,3106.5,3106.4,0.4595]
[1763547342205,0.0004,3106.5,3106.4,0.9226]
[1763547344143,0.0004,3106.5,3106.4,0.4595]
[1763547344451,0.0004,3106.5,3106.4,0.9226]
[1763547347333,0.0004,3106.5,3106.4,0.4595]
[1763547348269,0.0004,3106.5,3106.4,0.9226]
[1763547348834,0.0004,3106.5,3106.4,0.4595]
[1763547349547,0.5002,3106.5,3105.0,20.001]
[1763547349746,0.0004,3106.5,3105.5,0.4631]
[1763547350444,0.4632,3106.5,3105.5,0.4631]
[1763547350847,0.0004,3106.5,3105.5,0.4631]
[1763547353775,0.0004,3106.5,3106.4,0.4595]
[1763547353974,0.0004,3106.5,3106.4,0.619]
[1763547354178,0.0004,3106.5,3106.4,1.0821]
[1763547354682,0.0004,3106.5,3106.4,0.619]
[1763547355647,0.0004,3106.5,3106.4,1.0821]
[1763547357285,0.0004,3106.5,3106.4,0.619]
[1763547358258,0.5002,3106.5,3106.0,0.1595]
[1763547358476,0.0004,3106.5,3106.0,0.1595]
[1763547358676,0.0004,3106.5,3106.0,0.6226]
[1763547359186,0.0004,3106.5,3106.4,0.4595]
[1763547360085,0.0004,3106.5,3106.4,0.9226]
[1763547360861,0.0004,3106.5,3106.4,0.4595]
[1763547362394,0.5002,3106.5,3106.0,0.1595]
[1763547362591,0.0004,3106.5,3106.4,0.4595]
[1763547362972,0.0004,3106.5,3106.4,0.9226]
[1763547363167,0.0004,3106.5,3106.4,0.4595]
[1763547363960,0.50498804,3106.7,3106.4,0.4595]
[1763547365418,0.4998,3106.5,3105.6,0.4631]
[1763547365595,0.4998,3106.5,3105.7,0.90699264]
[1763547365766,0.4998,3106.5,3105.8,0.52400926]
[1763547365967,0.9626,3106.5,3105.8,0.52400926]
[1763547366162,0.9626,3106.5,3105.7,0.4631]
[1763547366793,0.4998,3106.5,3105.7,0.4631]
[1763547367090,0.50498804,3106.7,3106.4,0.619]
[1763547367289,0.50498804,3106.7,3106.6,0.4595]
[1763547367792,0.50498804,3106.7,3106.6,0.9293]
[1763547368360,0.50498804,3106.7,3106.6,0.4595]
[1763547369382,0.50498804,3106.7,3106.6,0.9293]
[1763547369987,0.002,3106.9,3106.6,0.9293]
[1763547370324,0.002,3106.9,3106.6,0.4595]
[1763547370911,0.002,3106.9,3106.8,0.4664]
[1763547371707,0.4805,3106.9,3106.4,0.1595]
[1763547372311,0.4805,3106.9,3106.4,0.6293]
[1763547372508,0.002,3106.9,3106.8,0.4664]
[1763547373794,0.002,3106.9,3106.8,0.9362]
[1763547377510,0.50729888,3106.9,3106.8,0.9362]
[1763547378139,0.50729888,3106.9,3106.8,0.4664]
[1763547378338,0.50729888,3106.9,3106.8,0.9362]
[1763547381652,0.002,3107.2,3107.0,0.3227]
[1763547381856,0.002,3107.2,3107.1,1.1111]
[1763547382036,0.002,3107.2,3107.1,1.516604]
[1763547382237,0.002,3107.2,3107.1,1.64558279]
[1763547383053,0.002,3107.2,3107.1,1.67776714]
[1763547383251,0.002,3107.2,3107.1,1.64558279]
[1763547383461,0.002,3107.2,3107.1,1.83585504]
[1763547384761,0.002,3107.5,3107.2,1.390204]
[1763547385070,0.002,3107.5,3107.4,0.903404]
[1763547385239,0.002,3107.6,3107.5,0.405504]
[1763547385571,0.002,3107.6,3107.5,3.28562874]
[1763547385747,0.002,3107.6,3107.5,3.71910911]
[1763547385930,0.002,3107.6,3107.5,2.34237796]
[1763547387332,0.002,3109.9,3107.7,0.405504]
[1763547387658,0.002,3109.9,3107.9,1.81039664]